Cogmind - Beta 9.5 @@@ ROGUE MODE // 2020.04.07 @ 19:33:43 Player: V_ Result: Self-destructed Performance ------------- Evolutions (1) 500 Regions Visited (3) 600 Robots Destroyed (10) 50 Value Destroyed (216) 216 Prototype IDs (0) 0 Alien Tech Used (0) 0 Bonus (0) 0 TOTAL SCORE: 1366 Bonus ------- None Cogmind --------- Core Integrity 310/400 Matter 280/300 Energy 100/100 System Corruption 0% Temperature Cool (0) Movement Walking (120) Location -9/Materials Parts ------- > --- POWER (2) -------- (None) > --- PROPULSION (3) --- Aluminum Leg > --- UTILITY (2) ------ Small Storage Unit Improved Targeting Computer > --- WEAPON (2) ------- Datajack > --- INVENTORY (6) ---- Assault Rifle Peak State ------------ > --- POWER ------------ Ion Engine Light Ion Engine > --- PROPULSION ------- Aluminum Leg Aluminum Leg > --- UTILITY ---------- Small Storage Unit Improved Targeting Computer > --- WEAPON ----------- Medium Laser Datajack > --- INVENTORY -------- Small Storage Unit Assault Rifle [Rating: 9] Favorites ----------- Power Ion Engine Engine Ion Engine Propulsion Aluminum Leg Leg Aluminum Leg Utility Small Storage Unit Storage Small Storage Unit Processor Improved Targeting Computer Weapon Medium Laser Energy Gun Medium Laser Ballistic Gun Assault Rifle Special Melee Weapon Datajack Build | -11 -10 -10 -9 ------- Run | Scr Mat Min Mat Slots Evolved 2 | . . . 2 Power 1 | . . . 1 Propulsion 1 | . . . 1 Utility . | . . . . Weapon . | . . . . Parts Attached 13 | 7 1 . 5 Power 2 | 1 . . 1 Engine 2 | 1 . . 1 Core . | . . . . Reactor . | . . . . Propulsion 3 | 2 . . 1 Treads . | . . . . Leg 3 | 2 . . 1 Wheel . | . . . . Hover . | . . . . Flight . | . . . . Utility 4 | 2 . . 2 Device . | . . . . Storage 3 | 2 . . 1 Processor 1 | . . . 1 Hackware . | . . . . Protection . | . . . . Artifact . | . . . . Weapon 4 | 2 1 . 1 Energy Gun 2 | 2 . . . Energy Cannon . | . . . . Ballistic Gun 1 | . 1 . . Ballistic Cannon . | . . . . Launcher . | . . . . Special Weapon . | . . . . Impact Weapon . | . . . . Slashing Weapon . | . . . . Piercing Weapon . | . . . . Special Melee Weapon 1 | . . . 1 Unidentified Prototypes . | . . . . Parts Lost 4 | . . . 4 Power 2 | . . . 2 Propulsion 1 | . . . 1 Utility . | . . . . Weapon 1 | . . . 1 Highest Loss Streak 4 | . . . 4 Average Slot Usage (%) 95 | . 100 100 84 Engine 15 | . 14 14 19 Leg 26 | . 28 28 22 Storage 25 | . 28 28 18 Energy Gun 14 | . 16 14 10 Ballistic Gun 10 | . 11 14 5 Special Melee Weapon 1 | . . . 5 Naked Turns . | . . . . Heaviest Build 20 | 17 17 17 20 Greatest Support 20 | 20 20 20 20 Greatest Overweight (x) . | . . . . Average Overweight (x) . | . . . . Largest Inventory Capacity 8 | 8 8 8 8 Average Capacity 7 | 6 8 8 7 Most Carried 4 | 4 2 2 3 Average Carried 1 | 1 2 2 1 Final Capacity 8 | 8 8 8 6 Final Carried 2 | 2 2 2 1 Class Distribution -------------------- 100% | Mutant Dominant Class ---------------- Mutant | -10/Materials Mutant | -10/Mines Mutant | -9/Materials Resources | -11 -10 -10 -9 ----------- Run | Scr Mat Min Mat Matter Collected 361 | 270 91 . . Remotely . | . . . . Salvage Created 384 | 74 161 . 149 Parts 20 | 1 11 . 8 Haulers Intercepted . | . . . . Recyclers Shooed . | . . . . Parts Field Recycled . | . . . . Retrieved Matter . | . . . . Parts Self-Destructed . | . . . . Prevented . | . . . . Kills | -11 -10 -10 -9 ------- Run | Scr Mat Min Mat Combat Hostiles Destroyed 7 | . 4 . 3 Guns 7 | . 4 . 3 Classes Destroyed 5 | 1 3 . 1 Recycler 2 | 1 1 . . Watcher 1 | . 1 . . Swarmer 3 | . 3 . . Grunt 2 | . 1 . 1 Sentry 2 | . . . 2 Best Kill Streak 3 | 1 3 . 3 Combat Bots Only 3 | . 2 . 3 Max Kills in Single Turn 1 | 1 1 . 1 Gunslinging . | . . . . Exploded . | . . . . Melee . | . . . . Uniques/NPCs Destroyed . | . . . . Combat | -11 -10 -10 -9 -------- Run | Scr Mat Min Mat Damage Taken 584 | . 217 . 367 Core 157 | . 67 . 90 Absorbed by Shields . | . . . . Core Remaining (%) 86 | 100 . 73 . Volleys Fired 45 | 4 27 . 14 Largest 2 | 2 2 . 1 Hottest 90 | 90 70 . 50 Shots Fired 76 | 8 54 . 14 Gun 76 | 8 54 . 14 Cannon . | . . . . Launcher . | . . . . Special . | . . . . Kinetic 27 | . 27 . . Thermal 45 | 4 27 . 14 Explosive . | . . . . Electromagnetic 4 | 4 . . . Robot Hit Streak 7 | 4 4 . 7 Robot Miss Streak 6 | 1 6 . 2 Penetration Max . | . . . . Secondary Targets 2 | . 2 . . Max Gunslinging Chain 1 | . 1 . . Shots Hit Robots 43 | 6 22 . 15 Core Hits 16 | 2 8 . 6 Critical Hits . | . . . . Critical Kills . | . . . . Critical Parts Destroyed . | . . . . Melee Attacks 5 | . . . 5 Impact . | . . . . Slashing . | . . . . Piercing . | . . . . Sneak Attacks . | . . . . Combat Hostiles . | . . . . Follow-up Attacks . | . . . . Damage Inflicted 503 | 88 266 . 149 Guns 503 | 88 266 . 149 Cannons . | . . . . Explosions . | . . . . Melee . | . . . . Ramming . | . . . . Kinetic 104 | . 104 . . Thermal 348 | 37 162 . 149 Explosive . | . . . . Electromagnetic 51 | 51 . . . Impact . | . . . . Slashing . | . . . . Piercing . | . . . . Highest Corruption . | . . . . Average Corruption . | . . . . Corruption Purged . | . . . . Overload Shots . | . . . . Overflow Damage . | . . . . Projectiles . | . . . . Explosions . | . . . . Melee . | . . . . Knockbacks . | . . . . Impact . | . . . . Kinetic . | . . . . Secondary . | . . . . Self-Inflicted Damage . | . . . . Shots . | . . . . Rammed . | . . . . Targets Rammed . | . . . . Kicked . | . . . . Crushed . | . . . . Highest Temperature 120 | 120 108 . 115 Average Temperature 39 | 61 28 . 56 Received Heat Transfer 165 | . 54 . 111 Siege Activations . | . . . . Robots Corrupted . | . . . . Combat Hostiles . | . . . . Parts Fried 1 | 1 . . . Impact Corruptions . | . . . . Robots Melted . | . . . . Combat Hostiles . | . . . . Parts Melted 1 | . . . 1 Heat Transferred 1036 | 111 481 . 444 Parts Sabotaged . | . . . . Parts Stolen . | . . . . Parts Stripped . | . . . . Power Chain Reactions . | . . . . Missiles Intercepted . | . . . . Alert | -11 -10 -10 -9 ------- Run | Scr Mat Min Mat Peak Influence 150 | 5 150 58 134 Average Influence 42 | 3 50 58 52 Maximum Alert Level . | . . . . Low Security (%) 100 | 100 100 100 100 Level 1 . | . . . . Level 2 . | . . . . Level 3 . | . . . . Level 4 . | . . . . Level 5 . | . . . . High Security . | . . . . Max Security . | . . . . Squads Dispatched . | . . . . Investigation . | . . . . Extermination . | . . . . Reinforcement . | . . . . Assault . | . . . . Garrison . | . . . . Intercept . | . . . . Construction Impeded . | . . . . Haulers Reinforced . | . . . . Stealth | -11 -10 -10 -9 --------- Run | Scr Mat Min Mat Distress Signals 3 | . 1 . 2 Communications Jammed . | . . . . Distress Signals . | . . . . Times Spotted 18 | . 10 . 8 Peak Tracking Total 6 | . 4 . 6 Tactical Retreats . | . . . . Traps | -11 -10 -10 -9 ------- Run | Scr Mat Min Mat Traps Triggered . | . . . . Indirectly . | . . . . Trap Hack Attempts . | . . . . Triggered . | . . . . Disarmed . | . . . . Reprogrammed . | . . . . Reused . | . . . . Traps Extracted . | . . . . Installed . | . . . . Triggered . | . . . . Machines | -11 -10 -10 -9 ---------- Run | Scr Mat Min Mat Machines Disabled . | . . . . Max in Single Turn . | . . . . Machines Sabotaged . | . . . . Garrisons Compromised . | . . . . Overloaded Fab Kills . | . . . . Fab Network Shutdowns . | . . . . Hacking | -11 -10 -10 -9 --------- Run | Scr Mat Min Mat Machines Accessed 3 | . 1 . 2 Terminals 1 | . 1 . . Fabricators . | . . . . Repair Stations . | . . . . Recycling Units 1 | . . . 1 Scanalyzers 1 | . . . 1 Garrison Access . | . . . . Total Hacks 15 | . 3 . 12 Successful 11 | . 3 . 8 Failed 4 | . . . 4 Catastrophic . | . . . . Database Lockouts . | . . . . Manual . | . . . . Terminals 3 | . 3 . . Fabricators . | . . . . Repair Stations . | . . . . Recycling Units 10 | . . . 10 Scanalyzers 2 | . . . 2 Garrison Access . | . . . . Terminal Hacks 3 | . 3 . . Record 3 | . 3 . . Fabricator Hacks . | . . . . Repair Station Hacks . | . . . . Recycling Unit Hacks 7 | . . . 7 Recycle Component 2 | . . . 2 Process 2 | . . . 2 Report Inventory 1 | . . . 1 Retrieve Matter 1 | . . . 1 Retrieve Components 1 | . . . 1 Scanalyzer 1 | . . . 1 Insert Component 1 | . . . 1 Garrison Access Hacks . | . . . . Unauthorized Hacks . | . . . . Terminals . | . . . . Fabricators . | . . . . Repair Stations . | . . . . Recycling Units . | . . . . Scanalyzers . | . . . . Garrison Access . | . . . . Data Cores Recovered . | . . . . Used . | . . . . Hacking Detections 1 | . 1 . . Full Trace Events . | . . . . Feedback Events . | . . . . Feedback Blocked . | . . . . Robot Schematics Acquired . | . . . . Robots Built . | . . . . Matter . | . . . . Time . | . . . . Total Robot Build Rating . | . . . . Part Schematics Acquired . | . . . . Parts Built . | . . . . Matter . | . . . . Time . | . . . . Total Part Build Rating . | . . . . Parts Repaired . | . . . . Time . | . . . . Parts Recycled 2 | . . . 2 Recycled Matter 43 | . . . 43 Retrieved Matter 43 | . . . 43 Retrieved Components . | . . . . Parts Scanalyzed 1 | . . . 1 Part Schematics Acquired . | . . . . Parts Damaged . | . . . . Bothacking | -11 -10 -10 -9 ------------ Run | Scr Mat Min Mat Used RIF Installer . | . . . . Robots Hacked 2 | . . . 2 Non-combat . | . . . . Combat 2 | . . . 2 Robot Hacks Applied 2 | . . . 2 parse_system 2 | . . . 2 Relay Couplers Released . | . . . . Robots Rewired . | . . . . Allies Hacked . | . . . . Hacks Repelled . | . . . . Allies | -11 -10 -10 -9 -------- Run | Scr Mat Min Mat Total Allies . | . . . . Largest Group . | . . . . Highest-Rated Group . | . . . . Highest-Rated Ally . | . . . . Total Orders . | . . . . Ally Attacks . | . . . . Total Damage . | . . . . Kills . | . . . . Allies Corrupted . | . . . . Allies Melted . | . . . . Intel | -11 -10 -10 -9 ------- Run | Scr Mat Min Mat Robot Analysis Total . | . . . . Derelict Logs Recovered . | . . . . Drone Launches . | . . . . Drone Recoveries . | . . . . Exploration | -11 -10 -10 -9 ------------- Run | Scr Mat Min Mat Turns Passed 782 | 166 334 108 174 Spaces Moved 528 | 123 210 91 104 Core 13 | 13 . . . Treads . | . . . . Legs 515 | 110 210 91 104 Wheels . | . . . . Hover . | . . . . Flight . | . . . . Fastest Speed 50 | 50 120 120 120 Average Speed 118 | 112 120 120 120 Slowest Speed 120 | 120 120 120 120 Overloaded Moves . | . . . . Propulsion Burnouts . | . . . . Robots Hopped . | . . . . Cave-ins Triggered . | . . . . Exploration Rate (%) 17 | 6 31 22 9 Regions Visited 3 Branch Regions 1 Pre-discovered Areas . | . . . . Known Exits Taken . | . . . . Unknown Exits Taken 3 | 1 1 1 . Scrap Searched . | . . . . Spaces Dug . | . . . . Terrain Destroyed . | . . . . Melee . | . . . . Projectile . | . . . . AOE . | . . . . Actions | -11 -10 -10 -9 --------- Run | Scr Mat Min Mat Total 606 | 142 238 90 136 Wait . | . . . . Move 525 | 122 209 90 104 Hop . | . . . . Pick Up 12 | 9 . . 3 Fast Attach . | . . . . Attach 13 | 7 1 . 5 Detach 5 | . 1 . 4 Swap . | . . . . Drop 1 | . . . 1 Fire 45 | 4 27 . 14 Melee 5 | . . . 5 Ram . | . . . . Kick . | . . . . Crush . | . . . . Escape Stasis . | . . . . Rewire . | . . . . Trap . | . . . . Miscellaneous . | . . . . Route ------- -11/Scrapyard -10/Materials -10/Mines -9/Materials History --------- Turn | Location | Event 22 | -11/Scrapyard | Discovered new exit (range 13) 167 | -11/Scrapyard | Entered Materials 315 | -10/Materials | Build established: Mutant 441 | -10/Materials | Discovered new exit (range 8) 501 | -10/Materials | Entered Mines 547 | -10/Mines | Discovered new exit (range 9) 609 | -10/Mines | Entered Materials 609 | -9/Materials | Evolved 2 slots: Power x1, Propulsion x1 783 | -9/Materials | Self-destructed Last Messages --------------- >>parse_system Reading system data... Ion Engine destroyed. Y-45 Defender destroyed. Lgt. Armor Plating melted. Y-45 Defender destroyed. G-34 Mercenary destroyed. W-16 Scout destroyed. Med. Laser destroyed. Jacked L-31 Rogue... Command string: terminate No effect. Jacked L-31 Rogue... Command string: exit No effect. Jacked L-31 Rogue... >>parse_system Reading system data... Lgt. Ion Engine destroyed. Aluminum Leg destroyed. Map ----- +----------------------------------------------------+ | | | | | | | | | | | | | | | | | | | | | | | | | | | | | | | | | | | | | ?????#############?#############?????????????????? | | ?????# #?# #?????????????????? | | ?????# """ #?# ! """"" #?????????????????? | | ?????# """ #?# """"" #?????????????????? | | ?????# """ "" #?# """"" #?????????????????? | | ?????# %Y" #?# #?????????????????? | | ?????# "" #?#! =! ! #?????????????????? | | ?????# #?# !%*@ #?????????????????? | | ###########+#############l########???????????????? | | # =%* ????????? | | # ! ????????? | | # u ????????? | | ###########+##############! ###+######+?????????? | | ???????# ! #?????????%! #???????????????????? | | ???????# """" #????????? #???????????????????? | | ???????# ""S"" #????????? %=#???????????????????? | | ???????# "" "" #????????? g #???????????????????? | | ???????# #?????????g +???????????????????? | | ???????# """ #????????? #???????????????????? | | ???????# """ #?????????#a##???????????????????? | | ???????# """ #??????????a#????????????????????? | | ???????# #?????????? +????????????????????? | | ???????##########??????????u#????????????????????? | | ????????????????????????????#????????????????????? | | ?????????????????????????????????????????????????? | | ?????????????????????????????????????????????????? | | ?????????????????????????????????????????????????? | | ?????????????????????????????????????????????????? | | ?????????????????????????????????????????????????? | | ?????????????????????????????????????????????????? | | ?????????????????????????????????????????????????? | | ?????????????????????????????????????????????????? | +----------------------------------------------------+ Best States ------------- Heat Dissipation 28 Energy Generation 15 Energy Capacity 275 Matter Stores 300 Matter Capacity 300 Sight Range 16 Terrain Scan Density 10 Evasion (%) 50 Targeting Accuracy 6 Item Schematics ----------------- None Robot Schematics ------------------ None Fabricated ------------ Nothing Alien Tech Used ----------------- None Achievements -------------- None Challenges ------------ None Game ------ Seed ScanTargetingRigger Manual? 0 Play Time 00:13:34 Cumulative 0.8 hours Start 2020.04.07 @ 19:21:26 End 2020.04.07 @ 19:33:43 Sessions 1 Manual Loads 0 Difficulty Rogue Special Mode None Game No. 3 Rogue 3 Adventurer 0 Explorer 0 Win Type - Total 0 Types 0/0/0/0/0/0/0 Lore% 1 Gallery% 3 Achievement% 4 Wizard Run 0 Options --------- ASCII 0 Keyboard 1 Movement Arrows Keybinds 0 Fullscreen 1 Font 24/Smallcaps Map View 76x50 Tactical HUD 0 Map Filters NONE Filters NONE Steam 1 RUN: 797ef140-0276-4407-b346-6999b76759a1